[Event "*** SCC Grand Prix: Titled Tuesday Blitz"]
[Site "Chess.com"]
[Date "2020.06.23"]
[Round "3"]
[White "AndreyNeves"]
[Black "Apocalyps999"]
[Result "1-0"]
[WhiteElo "2207"]
[BlackElo "2373"]
[TimeControl "180+1"]
[EndTime "10:28:50 PDT"]
[Termination "AndreyNeves won by checkmate"]

1. d4 {[%clk 0:03:00.9]} 1... d5 {[%clk 0:02:59.1]} 2. c4 {[%clk 0:03:00.8]}
2... c6 {[%clk 0:02:58.3]} 3. Nf3 {[%clk 0:03:00.6]} 3... Nf6 {[%clk 0:02:58.3]}
4. e3 {[%clk 0:02:59.7]} 4... Bf5 {[%clk 0:02:56.9]} 5. Nc3 {[%clk 0:02:57.4]}
5... e6 {[%clk 0:02:55.1]} 6. Bd3 {[%clk 0:02:57.3]} 6... Bxd3 {[%clk
0:02:54.2]} 7. Qxd3 {[%clk 0:02:56.9]} 7... Be7 {[%clk 0:02:54.4]} 8. O-O {[%clk
0:02:56]} 8... O-O {[%clk 0:02:55]} 9. e4 {[%clk 0:02:56.1]} 9... dxe4 {[%clk
0:02:54.6]} 10. Nxe4 {[%clk 0:02:56.2]} 10... Nbd7 {[%clk 0:02:54.2]} 11. b3
{[%clk 0:02:54.3]} 11... Qa5 {[%clk 0:02:54]} 12. Bb2 {[%clk 0:02:45.5]} 12...
Rad8 {[%clk 0:02:45.1]} 13. Nxf6+ {[%clk 0:02:41.3]} 13... Bxf6 {[%clk
0:02:44.2]} 14. Qe2 {[%clk 0:02:39.8]} 14... c5 {[%clk 0:02:33.7]} 15. dxc5
{[%clk 0:02:37.3]} 15... Bxb2 {[%clk 0:02:29.8]} 16. Qxb2 {[%clk 0:02:36.5]}
16... Nxc5 {[%clk 0:02:30]} 17. Rad1 {[%clk 0:02:28.5]} 17... Nd3 {[%clk
0:02:28.8]} 18. Qb1 {[%clk 0:02:27.7]} 18... Nf4 {[%clk 0:02:28]} 19. Rxd8
{[%clk 0:02:04.4]} 19... Rxd8 {[%clk 0:02:27.1]} 20. Rd1 {[%clk 0:02:03.1]}
20... Ne2+ {[%clk 0:02:16.5]} 21. Kf1 {[%clk 0:01:57.1]} 21... Nc3 {[%clk
0:02:15.8]} 22. Rxd8+ {[%clk 0:01:54.5]} 22... Qxd8 {[%clk 0:02:14.3]} 23. Qc2
{[%clk 0:01:51.9]} 23... Qa5 {[%clk 0:01:53.3]} 24. Qd2 {[%clk 0:01:32.6]} 24...
f5 {[%clk 0:01:38.4]} 25. a3 {[%clk 0:01:09]} 25... a6 {[%clk 0:01:28.4]} 26.
Ng5 {[%clk 0:01:00.6]} 26... b5 {[%clk 0:01:23.2]} 27. b4 {[%clk 0:00:49.8]}
27... Qc7 {[%clk 0:01:10.9]} 28. Qxc3 {[%clk 0:00:44.6]} 28... bxc4 {[%clk
0:01:10.8]} 29. Nxe6 {[%clk 0:00:41.5]} 29... Qd7 {[%clk 0:01:10.8]} 30. Nd4
{[%clk 0:00:37.4]} 30... Qd5 {[%clk 0:01:10.1]} 31. f3 {[%clk 0:00:35.7]} 31...
f4 {[%clk 0:01:09.3]} 32. a4 {[%clk 0:00:35.1]} 32... g5 {[%clk 0:01:09]} 33. b5
{[%clk 0:00:34.9]} 33... axb5 {[%clk 0:01:07.5]} 34. axb5 {[%clk 0:00:35.8]}
34... h5 {[%clk 0:01:07.7]} 35. b6 {[%clk 0:00:33.3]} 35... g4 {[%clk
0:01:07.8]} 36. b7 {[%clk 0:00:28.1]} 36... Qxb7 {[%clk 0:01:07]} 37. Qxc4+
{[%clk 0:00:28.2]} 37... Kh7 {[%clk 0:01:06.5]} 38. Nb5 {[%clk 0:00:21.4]} 38...
gxf3 {[%clk 0:01:04.1]} 39. Qd3+ {[%clk 0:00:15.3]} 39... Kh6 {[%clk 0:00:56.3]}
40. gxf3 {[%clk 0:00:15.5]} 40... Kg5 {[%clk 0:00:53.9]} 41. Nc3 {[%clk
0:00:12.9]} 41... Qb2 {[%clk 0:00:50.4]} 42. Ne2 {[%clk 0:00:08.8]} 42... Kh4
{[%clk 0:00:47.5]} 43. Qd8+ {[%clk 0:00:05.8]} 43... Kh3 {[%clk 0:00:46.8]} 44.
Ng1+ {[%clk 0:00:04.1]} 44... Kxh2 {[%clk 0:00:46.2]} 45. Qh4# {[%clk
0:00:03.6]} 1-0

[Event "*** SCC Grand Prix: Titled Tuesday Blitz"]
[Site "Chess.com"]
[Date "2020.06.23"]
[Round "3"]
[White "Dmitry_Konenkin"]
[Black "viktorskliarov"]
[Result "1-0"]
[WhiteElo "2394"]
[BlackElo "2548"]
[TimeControl "180+1"]
[EndTime "10:28:51 PDT"]
[Termination "Dmitry_Konenkin won by resignation"]

1. d4 {[%clk 0:03:00.9]} 1... Nf6 {[%clk 0:02:58.4]} 2. Bg5 {[%clk 0:03:01.4]}
2... Ne4 {[%clk 0:02:49.4]} 3. Bh4 {[%clk 0:03:01.6]} 3... g5 {[%clk 0:02:44.7]}
4. f3 {[%clk 0:03:02.1]} 4... gxh4 {[%clk 0:02:44.8]} 5. fxe4 {[%clk 0:03:02.7]}
5... c5 {[%clk 0:02:45.2]} 6. e3 {[%clk 0:03:03.2]} 6... Bh6 {[%clk 0:02:44.8]}
7. Kf2 {[%clk 0:03:03.8]} 7... Qb6 {[%clk 0:02:42.9]} 8. Nc3 {[%clk 0:03:04.1]}
8... Qxb2 {[%clk 0:02:34.5]} 9. Nb5 {[%clk 0:03:00.8]} 9... Kd8 {[%clk
0:02:34.5]} 10. Rb1 {[%clk 0:02:58.2]} 10... Qxa2 {[%clk 0:02:30.6]} 11. Ra1
{[%clk 0:02:47.4]} 11... Qe6 {[%clk 0:02:11.5]} 12. Qh5 {[%clk 0:02:37.9]} 12...
Nc6 {[%clk 0:01:49.4]} 13. Nf3 {[%clk 0:02:28.7]} 13... Qg6 {[%clk 0:01:19.9]}
14. Qxh4 {[%clk 0:02:08.7]} 14... cxd4 {[%clk 0:01:19.4]} 15. exd4 {[%clk
0:02:05.3]} 15... d6 {[%clk 0:01:19]} 16. Bd3 {[%clk 0:01:59.6]} 16... Nb4
{[%clk 0:01:12]} 17. Nxa7 {[%clk 0:01:52.2]} 17... Nxd3+ {[%clk 0:01:09.8]} 18.
cxd3 {[%clk 0:01:53.1]} 18... Ke8 {[%clk 0:01:02.9]} 19. Nb5 {[%clk 0:01:49]}
19... Rxa1 {[%clk 0:01:01.5]} 20. Rxa1 {[%clk 0:01:49.9]} 20... Kf8 {[%clk
0:01:01]} 21. Ra8 {[%clk 0:01:43.9]} 21... Kg7 {[%clk 0:00:46.6]} 22. Qxe7
{[%clk 0:01:43.6]} 22... Bh3 {[%clk 0:00:46]} 23. Nh4 {[%clk 0:01:26.2]} 23...
Be3+ {[%clk 0:00:24.1]} 24. Kxe3 {[%clk 0:01:15.8]} 24... Qh6+ {[%clk
0:00:24.4]} 25. Kf3 {[%clk 0:01:03.6]} 25... Qh5+ {[%clk 0:00:24.5]} 26. Kf2
{[%clk 0:01:00]} 26... Rxa8 {[%clk 0:00:23.9]} 27. gxh3 {[%clk 0:00:56.7]} 27...
Ra2+ {[%clk 0:00:17.8]} 28. Kg3 {[%clk 0:00:56.9]} 28... Qxb5 {[%clk 0:00:17.2]}
29. Nf5+ {[%clk 0:00:53.8]} 29... Kg6 {[%clk 0:00:17.3]} 30. Qxd6+ {[%clk
0:00:49.8]} 30... f6 {[%clk 0:00:17.1]} 31. Nh4+ {[%clk 0:00:19.5]} 31... Kf7
{[%clk 0:00:17.3]} 32. Qc7+ {[%clk 0:00:19.8]} 32... Kf8 {[%clk 0:00:14.6]} 33.
Qd8+ {[%clk 0:00:18.4]} 33... Kf7 {[%clk 0:00:14.8]} 34. Qc7+ {[%clk 0:00:18.5]}
34... Ke8 {[%clk 0:00:14.9]} 35. Qc8+ {[%clk 0:00:17.3]} 35... Ke7 {[%clk
0:00:15.2]} 36. Nf5+ {[%clk 0:00:16.3]} 36... Kf7 {[%clk 0:00:07.5]} 37. Nd6+
{[%clk 0:00:16.5]} 37... Kg6 {[%clk 0:00:07.2]} 38. Nxb5 {[%clk 0:00:16.6]} 1-0

[Event "*** SCC Grand Prix: Titled Tuesday Blitz"]
[Site "Chess.com"]
[Date "2020.06.23"]
[Round "3"]
[White "H3nriqueTV"]
[Black "XiaoKangZhong"]
[Result "1/2-1/2"]
[WhiteElo "2202"]
[BlackElo "2405"]
[TimeControl "180+1"]
[EndTime "10:28:51 PDT"]
[Termination "Game drawn by repetition"]

1. e4 {[%clk 0:03:00.9]} 1... c6 {[%clk 0:02:57.1]} 2. d4 {[%clk 0:03:00.6]}
2... d5 {[%clk 0:02:57.4]} 3. Nc3 {[%clk 0:03:01.5]} 3... dxe4 {[%clk
0:02:57.7]} 4. Nxe4 {[%clk 0:03:02.2]} 4... Nf6 {[%clk 0:02:58.4]} 5. Nxf6+
{[%clk 0:03:02.2]} 5... exf6 {[%clk 0:02:59.3]} 6. Nf3 {[%clk 0:03:01.9]} 6...
Bd6 {[%clk 0:03:00.2]} 7. h3 {[%clk 0:03:02.3]} 7... O-O {[%clk 0:03:00.8]} 8.
Be2 {[%clk 0:03:01.1]} 8... Qc7 {[%clk 0:02:53]} 9. O-O {[%clk 0:03:01.1]} 9...
Nd7 {[%clk 0:02:53.2]} 10. c4 {[%clk 0:03:01.5]} 10... c5 {[%clk 0:02:52.2]} 11.
Be3 {[%clk 0:02:57.1]} 11... cxd4 {[%clk 0:02:50.1]} 12. Nxd4 {[%clk 0:02:57]}
12... a6 {[%clk 0:02:50]} 13. Nf5 {[%clk 0:02:54.2]} 13... Bc5 {[%clk
0:02:48.2]} 14. Bf3 {[%clk 0:02:44.4]} 14... Ne5 {[%clk 0:02:31.4]} 15. Bxc5
{[%clk 0:01:55.4]} 15... Qxc5 {[%clk 0:02:28.1]} 16. Ne3 {[%clk 0:01:56.3]}
16... Nxf3+ {[%clk 0:01:54]} 17. Qxf3 {[%clk 0:01:54.2]} 17... Be6 {[%clk
0:01:44.5]} 18. Rac1 {[%clk 0:01:53.6]} 18... b5 {[%clk 0:01:38.7]} 19. cxb5
{[%clk 0:01:51.1]} 19... Qxb5 {[%clk 0:01:39.6]} 20. b3 {[%clk 0:01:51.3]} 20...
a5 {[%clk 0:01:36.2]} 21. Rc7 {[%clk 0:01:25.1]} 21... a4 {[%clk 0:01:27.2]} 22.
Rb7 {[%clk 0:01:21.4]} 22... Qa6 {[%clk 0:01:07.7]} 23. Rc1 {[%clk 0:01:19.9]}
23... Rac8 {[%clk 0:00:57]} 24. Rd1 {[%clk 0:00:49.3]} 24... Rcd8 {[%clk
0:00:41.9]} 25. Rc1 {[%clk 0:00:41.2]} 25... Rd2 {[%clk 0:00:35]} 26. bxa4
{[%clk 0:00:41.5]} 26... Qxa4 {[%clk 0:00:33.1]} 27. Rcc7 {[%clk 0:00:36.9]}
27... Qxa2 {[%clk 0:00:26.6]} 28. Ra7 {[%clk 0:00:34.7]} 28... Qb1+ {[%clk
0:00:25.5]} 29. Kh2 {[%clk 0:00:35]} 29... Qb2 {[%clk 0:00:22.4]} 30. Kg1 {[%clk
0:00:31.7]} 30... g6 {[%clk 0:00:18.7]} 31. Rab7 {[%clk 0:00:30.5]} 31... Qe5
{[%clk 0:00:18.8]} 32. Ng4 {[%clk 0:00:19.5]} 32... Bxg4 {[%clk 0:00:18.5]} 33.
hxg4 {[%clk 0:00:20.4]} 33... Rd4 {[%clk 0:00:18.3]} 34. Qb3 {[%clk 0:00:17.5]}
34... Qe1+ {[%clk 0:00:07.3]} 35. Kh2 {[%clk 0:00:17.4]} 35... Qxf2 {[%clk
0:00:05.7]} 36. Rxf7 {[%clk 0:00:16.7]} 36... Qh4+ {[%clk 0:00:05.8]} 37. Kg1
{[%clk 0:00:15.4]} 37... Qe1+ {[%clk 0:00:05.9]} 38. Kh2 {[%clk 0:00:15.7]}
38... Qh4+ {[%clk 0:00:04.6]} 39. Kg1 {[%clk 0:00:16.1]} 39... Qe1+ {[%clk
0:00:04.8]} 40. Kh2 {[%clk 0:00:16.6]} 40... Qh4+ {[%clk 0:00:05.2]} 1/2-1/2

[Event "*** SCC Grand Prix: Titled Tuesday Blitz"]
[Site "Chess.com"]
[Date "2020.06.23"]
[Round "3"]
[White "ElusiveCat"]
[Black "Resignify"]
[Result "1-0"]
[WhiteElo "2347"]
[BlackElo "2146"]
[TimeControl "180+1"]
[EndTime "10:28:51 PDT"]
[Termination "ElusiveCat won on time"]

1. d4 {[%clk 0:03:00.9]} 1... Nf6 {[%clk 0:02:59.2]} 2. c4 {[%clk 0:03:00.7]}
2... g6 {[%clk 0:02:59.3]} 3. Nf3 {[%clk 0:02:59.6]} 3... Bg7 {[%clk 0:02:59.2]}
4. g3 {[%clk 0:02:59.5]} 4... O-O {[%clk 0:02:58.4]} 5. Bg2 {[%clk 0:02:59.5]}
5... d6 {[%clk 0:02:58.5]} 6. O-O {[%clk 0:02:59.1]} 6... Nbd7 {[%clk
0:02:55.5]} 7. Nc3 {[%clk 0:02:58.9]} 7... e5 {[%clk 0:02:54.2]} 8. e4 {[%clk
0:02:58.8]} 8... c6 {[%clk 0:02:52.8]} 9. h3 {[%clk 0:02:57.3]} 9... a6 {[%clk
0:02:47.7]} 10. a4 {[%clk 0:02:47.4]} 10... Re8 {[%clk 0:02:41.2]} 11. Be3
{[%clk 0:02:36.3]} 11... exd4 {[%clk 0:02:34.5]} 12. Nxd4 {[%clk 0:02:37.2]}
12... Nc5 {[%clk 0:02:33.9]} 13. Qc2 {[%clk 0:02:30.5]} 13... a5 {[%clk
0:02:32.7]} 14. Rad1 {[%clk 0:02:24.3]} 14... Qe7 {[%clk 0:02:11.8]} 15. f3
{[%clk 0:01:44.2]} 15... Nfd7 {[%clk 0:01:55]} 16. Bf2 {[%clk 0:01:35.5]} 16...
Na6 {[%clk 0:01:45.3]} 17. f4 {[%clk 0:01:29.3]} 17... Nb4 {[%clk 0:01:43.2]}
18. Qb1 {[%clk 0:01:25.7]} 18... Nc5 {[%clk 0:01:42]} 19. Rfe1 {[%clk 0:01:10]}
19... Bd7 {[%clk 0:01:26.9]} 20. g4 {[%clk 0:00:55.7]} 20... Rad8 {[%clk
0:01:23.6]} 21. Nf3 {[%clk 0:00:50.5]} 21... Nb3 {[%clk 0:00:53.6]} 22. e5
{[%clk 0:00:30.7]} 22... Be6 {[%clk 0:00:40.9]} 23. exd6 {[%clk 0:00:19.6]}
23... Qf8 {[%clk 0:00:28.8]} 24. c5 {[%clk 0:00:18.6]} 24... Na6 {[%clk
0:00:19.8]} 25. f5 {[%clk 0:00:18.5]} 25... Bc4 {[%clk 0:00:14.5]} 26. Ne4
{[%clk 0:00:17.6]} 26... gxf5 {[%clk 0:00:12.6]} 27. gxf5 {[%clk 0:00:17.5]}
27... Rxe4 {[%clk 0:00:09.3]} 28. Qxe4 {[%clk 0:00:15.8]} 28... Bd5 {[%clk
0:00:09.1]} 29. Qg4 {[%clk 0:00:15.8]} 29... Kh8 {[%clk 0:00:07.9]} 30. Ng5
{[%clk 0:00:15.7]} 30... Bxg2 {[%clk 0:00:04.4]} 31. Qxg2 {[%clk 0:00:15.6]}
31... Bf6 {[%clk 0:00:04]} 32. Ne4 {[%clk 0:00:14.9]} 32... Bxb2 {[%clk
0:00:02.4]} 33. Kh1 {[%clk 0:00:14.4]} 33... Be5 {[%clk 0:00:01.9]} 34. Bh4
{[%clk 0:00:14.1]} 1-0

[Event "*** SCC Grand Prix: Titled Tuesday Blitz"]
[Site "Chess.com"]
[Date "2020.06.23"]
[Round "3"]
[White "tan275"]
[Black "Mikhail_Golubev"]
[Result "0-1"]
[WhiteElo "2265"]
[BlackElo "2603"]
[TimeControl "180+1"]
[EndTime "10:28:52 PDT"]
[Termination "Mikhail_Golubev won by resignation"]

1. d4 {[%clk 0:03:00.9]} 1... Nf6 {[%clk 0:02:59]} 2. c4 {[%clk 0:03:00.8]} 2...
g6 {[%clk 0:02:58.5]} 3. g3 {[%clk 0:03:00.6]} 3... Bg7 {[%clk 0:02:58.7]} 4.
Bg2 {[%clk 0:03:00.7]} 4... O-O {[%clk 0:02:58.7]} 5. Nf3 {[%clk 0:03:00.6]}
5... d6 {[%clk 0:02:57.9]} 6. Nc3 {[%clk 0:03:00.4]} 6... Nbd7 {[%clk
0:02:55.9]} 7. O-O {[%clk 0:02:59.8]} 7... e5 {[%clk 0:02:55.8]} 8. h3 {[%clk
0:02:58.9]} 8... Re8 {[%clk 0:02:48.9]} 9. e4 {[%clk 0:02:56.4]} 9... exd4
{[%clk 0:02:48.9]} 10. Nxd4 {[%clk 0:02:55.9]} 10... Nc5 {[%clk 0:02:47.9]} 11.
Re1 {[%clk 0:02:51.9]} 11... a6 {[%clk 0:02:43.6]} 12. b4 {[%clk 0:02:39.6]}
12... Ncd7 {[%clk 0:02:32.4]} 13. Be3 {[%clk 0:02:21.9]} 13... Ne5 {[%clk
0:02:28.8]} 14. Qe2 {[%clk 0:02:17.6]} 14... c5 {[%clk 0:02:27.6]} 15. bxc5
{[%clk 0:02:14]} 15... dxc5 {[%clk 0:02:27.1]} 16. Nb3 {[%clk 0:02:08.8]} 16...
Qd3 {[%clk 0:02:00.3]} 17. Qxd3 {[%clk 0:01:52.3]} 17... Nxd3 {[%clk 0:02:00.1]}
18. Red1 {[%clk 0:01:52.3]} 18... Nb2 {[%clk 0:01:57.1]} 19. Rdc1 {[%clk
0:01:36.6]} 19... Nxc4 {[%clk 0:01:55.8]} 20. Bxc5 {[%clk 0:01:16.5]} 20... Be6
{[%clk 0:01:44.6]} 21. Nd5 {[%clk 0:01:07.6]} 21... Nxd5 {[%clk 0:01:23.2]} 22.
exd5 {[%clk 0:01:06.8]} 22... Bd7 {[%clk 0:01:12.7]} 23. Bd4 {[%clk 0:00:46.6]}
23... Rac8 {[%clk 0:01:06]} 24. Bxg7 {[%clk 0:00:39.7]} 24... Kxg7 {[%clk
0:01:05.6]} 25. Re1 {[%clk 0:00:34]} 25... Nd6 {[%clk 0:01:01.8]} 26. Rxe8
{[%clk 0:00:29]} 26... Bxe8 {[%clk 0:01:01]} 27. Re1 {[%clk 0:00:24.7]} 27...
Bb5 {[%clk 0:00:59.3]} 28. Nd4 {[%clk 0:00:20.4]} 28... Bc4 {[%clk 0:00:54.1]}
29. a3 {[%clk 0:00:19.2]} 29... Rc5 {[%clk 0:00:53]} 30. Re7 {[%clk 0:00:17.7]}
30... Bxd5 {[%clk 0:00:50.5]} 31. Rd7 {[%clk 0:00:09.4]} 31... Rc1+ {[%clk
0:00:50]} 32. Kh2 {[%clk 0:00:08.6]} 32... Bxg2 {[%clk 0:00:48.9]} 33. Kxg2
{[%clk 0:00:07]} 33... Nc4 {[%clk 0:00:34.5]} 34. Rxb7 {[%clk 0:00:04.9]} 34...
Nxa3 {[%clk 0:00:29.9]} 35. Ra7 {[%clk 0:00:04.6]} 35... Nb5 {[%clk 0:00:25.9]}
36. Ne6+ {[%clk 0:00:01.9]} 36... Kf6 {[%clk 0:00:23.5]} 37. Nf4 {[%clk
0:00:02.8]} 37... Nxa7 {[%clk 0:00:22.9]} 0-1

[Event "*** SCC Grand Prix: Titled Tuesday Blitz"]
[Site "Chess.com"]
[Date "2020.06.23"]
[Round "3"]
[White "Batsai"]
[Black "vinniethepooh"]
[Result "0-1"]
[WhiteElo "2368"]
[BlackElo "2559"]
[TimeControl "180+1"]
[EndTime "10:28:52 PDT"]
[Termination "vinniethepooh won on time"]

1. e4 {[%clk 0:03:00.9]} 1... c5 {[%clk 0:03:00.2]} 2. Nf3 {[%clk 0:03:00.3]}
2... d6 {[%clk 0:03:00.3]} 3. d4 {[%clk 0:03:00.6]} 3... cxd4 {[%clk 0:03:01.2]}
4. Nxd4 {[%clk 0:03:01.3]} 4... Nf6 {[%clk 0:03:01]} 5. Nc3 {[%clk 0:03:01.9]}
5... a6 {[%clk 0:03:00.5]} 6. Be2 {[%clk 0:03:02.2]} 6... e5 {[%clk 0:02:58.7]}
7. Nb3 {[%clk 0:03:02.2]} 7... Be7 {[%clk 0:02:58.6]} 8. Bg5 {[%clk 0:03:02.2]}
8... Be6 {[%clk 0:02:56.3]} 9. Bxf6 {[%clk 0:02:46.7]} 9... Bxf6 {[%clk
0:02:57.2]} 10. Qd3 {[%clk 0:02:43.7]} 10... O-O {[%clk 0:02:39.2]} 11. O-O-O
{[%clk 0:02:26.2]} 11... Qb6 {[%clk 0:02:03.2]} 12. Rhf1 {[%clk 0:01:59.3]}
12... Nc6 {[%clk 0:01:52.5]} 13. Qxd6 {[%clk 0:01:45.4]} 13... Rfd8 {[%clk
0:01:34.4]} 14. Qc5 {[%clk 0:01:44.6]} 14... Qxc5 {[%clk 0:00:54.9]} 15. Nxc5
{[%clk 0:01:45.5]} 15... Nd4 {[%clk 0:00:54.4]} 16. Nxe6 {[%clk 0:01:02.7]}
16... fxe6 {[%clk 0:00:55.3]} 17. Bg4 {[%clk 0:00:54]} 17... Kf7 {[%clk
0:00:53.6]} 18. Ne2 {[%clk 0:00:41.1]} 18... Nb5 {[%clk 0:00:44]} 19. c3 {[%clk
0:00:34.8]} 19... Nd6 {[%clk 0:00:41]} 20. Ng3 {[%clk 0:00:14.1]} 20... Rac8
{[%clk 0:00:40.9]} 21. Kb1 {[%clk 0:00:12.8]} 21... b5 {[%clk 0:00:40.4]} 22.
Bh5+ {[%clk 0:00:13]} 22... g6 {[%clk 0:00:38.7]} 23. Be2 {[%clk 0:00:11.2]}
23... h5 {[%clk 0:00:38.3]} 24. f3 {[%clk 0:00:10.3]} 24... Bg5 {[%clk
0:00:31.1]} 25. Nh1 {[%clk 0:00:09.1]} 25... Ke7 {[%clk 0:00:30.8]} 26. Nf2
{[%clk 0:00:09]} 26... Be3 {[%clk 0:00:28.2]} 27. Nd3 {[%clk 0:00:09]} 27... Nc4
{[%clk 0:00:25.6]} 28. Kc2 {[%clk 0:00:07.6]} 28... Bg5 {[%clk 0:00:18.1]} 29.
g3 {[%clk 0:00:06.9]} 29... Ne3+ {[%clk 0:00:18]} 30. Kb3 {[%clk 0:00:06.1]}
30... Bf6 {[%clk 0:00:17]} 31. Nb4 {[%clk 0:00:03.7]} 31... Nxf1 {[%clk
0:00:15.9]} 32. Rxf1 {[%clk 0:00:02.6]} 32... Rd2 {[%clk 0:00:15.1]} 0-1

[Event "*** SCC Grand Prix: Titled Tuesday Blitz"]
[Site "Chess.com"]
[Date "2020.06.23"]
[Round "3"]
[White "rpragchess"]
[Black "Shuvalov"]
[Result "1-0"]
[WhiteElo "2789"]
[BlackElo "2451"]
[TimeControl "180+1"]
[EndTime "10:28:53 PDT"]
[Termination "rpragchess won by resignation"]

1. Nf3 {[%clk 0:03:00.9]} 1... d5 {[%clk 0:01:45.1]} 2. g3 {[%clk 0:02:58.8]}
2... Nf6 {[%clk 0:01:44.3]} 3. Bg2 {[%clk 0:02:58.2]} 3... Bf5 {[%clk
0:01:44.5]} 4. O-O {[%clk 0:02:58.4]} 4... e6 {[%clk 0:01:44.9]} 5. d3 {[%clk
0:02:57.8]} 5... h6 {[%clk 0:01:44.6]} 6. c4 {[%clk 0:02:43.3]} 6... c6 {[%clk
0:01:44.3]} 7. cxd5 {[%clk 0:02:40.9]} 7... cxd5 {[%clk 0:01:44]} 8. Qb3 {[%clk
0:02:35.9]} 8... Qb6 {[%clk 0:01:40.8]} 9. Be3 {[%clk 0:02:28.9]} 9... Qxb3
{[%clk 0:01:40.1]} 10. axb3 {[%clk 0:02:29.8]} 10... Nc6 {[%clk 0:01:40.9]} 11.
Nc3 {[%clk 0:02:25.6]} 11... Bd6 {[%clk 0:01:37.1]} 12. Nd4 {[%clk 0:02:18.8]}
12... Nxd4 {[%clk 0:01:35.4]} 13. Bxd4 {[%clk 0:02:19.7]} 13... Bg6 {[%clk
0:01:28.3]} 14. e4 {[%clk 0:02:00.4]} 14... dxe4 {[%clk 0:01:21.2]} 15. dxe4
{[%clk 0:01:57.9]} 15... e5 {[%clk 0:01:17.2]} 16. Bxa7 {[%clk 0:01:47.1]} 16...
Ke7 {[%clk 0:01:15.8]} 17. Be3 {[%clk 0:01:37.8]} 17... Bb4 {[%clk 0:00:59.3]}
18. f3 {[%clk 0:01:35.2]} 18... Rhc8 {[%clk 0:00:49.6]} 19. Bh3 {[%clk
0:01:26.8]} 19... Rd8 {[%clk 0:00:40.3]} 20. Rxa8 {[%clk 0:01:13.3]} 20... Rxa8
{[%clk 0:00:40]} 21. Rd1 {[%clk 0:01:13.7]} 21... Ra5 {[%clk 0:00:32.3]} 22. Kf1
{[%clk 0:01:03.6]} 22... Bc5 {[%clk 0:00:31.3]} 23. Ke2 {[%clk 0:00:45.9]} 23...
Bxe3 {[%clk 0:00:30]} 24. Kxe3 {[%clk 0:00:46.8]} 24... Ra8 {[%clk 0:00:21.4]}
25. b4 {[%clk 0:00:39.4]} 25... Rd8 {[%clk 0:00:20.8]} 26. Ra1 {[%clk
0:00:39.2]} 26... Kd6 {[%clk 0:00:17.9]} 27. Rd1+ {[%clk 0:00:36.5]} 27... Kc7
{[%clk 0:00:18]} 28. Nb5+ {[%clk 0:00:36.4]} 28... Kb6 {[%clk 0:00:18.4]} 29.
Rxd8 {[%clk 0:00:36.5]} 29... Kxb5 {[%clk 0:00:19.1]} 30. Rb8 {[%clk 0:00:34.5]}
30... b6 {[%clk 0:00:19.1]} 31. Bf1+ {[%clk 0:00:32.2]} 31... Kc6 {[%clk
0:00:17.5]} 32. b5+ {[%clk 0:00:32.6]} 32... Kc7 {[%clk 0:00:17.5]} 33. Ra8
{[%clk 0:00:33.1]} 33... Kd6 {[%clk 0:00:17]} 34. Bh3 {[%clk 0:00:32.8]} 34...
Bh7 {[%clk 0:00:13.1]} 35. Rc8 {[%clk 0:00:29.8]} 35... Bg6 {[%clk 0:00:10]} 36.
Rc6+ {[%clk 0:00:29.8]} 36... Ke7 {[%clk 0:00:10.9]} 37. Rxb6 {[%clk 0:00:30.4]}
37... Ne8 {[%clk 0:00:10.2]} 38. Rb7+ {[%clk 0:00:30.3]} 38... Kf8 {[%clk
0:00:10.1]} 39. b6 {[%clk 0:00:30.8]} 39... Nd6 {[%clk 0:00:10.5]} 40. Rb8+
{[%clk 0:00:31.7]} 40... Ke7 {[%clk 0:00:10.8]} 41. b7 {[%clk 0:00:32]} 41...
Kf6 {[%clk 0:00:10.4]} 42. Bc8 {[%clk 0:00:30.8]} 42... Bh5 {[%clk 0:00:09.7]}
43. Ra8 {[%clk 0:00:30.7]} 43... Nxb7 {[%clk 0:00:09.1]} 44. Bxb7 {[%clk
0:00:31.6]} 44... Kg6 {[%clk 0:00:09.2]} 45. Bd5 {[%clk 0:00:31]} 45... Kh7
{[%clk 0:00:10.1]} 46. b4 {[%clk 0:00:31.6]} 46... Bg6 {[%clk 0:00:10.5]} 47. b5
{[%clk 0:00:32.1]} 1-0

[Event "*** SCC Grand Prix: Titled Tuesday Blitz"]
[Site "Chess.com"]
[Date "2020.06.23"]
[Round "3"]
[White "vpsetter"]
[Black "aa175"]
[Result "1-0"]
[WhiteElo "2611"]
[BlackElo "2401"]
[TimeControl "180+1"]
[EndTime "10:28:54 PDT"]
[Termination "vpsetter won by resignation"]

1. e4 {[%clk 0:03:00.7]} 1... c5 {[%clk 0:02:57.2]} 2. Nf3 {[%clk 0:03:00.8]}
2... d6 {[%clk 0:02:54.7]} 3. d4 {[%clk 0:03:00.8]} 3... cxd4 {[%clk 0:02:55.3]}
4. Nxd4 {[%clk 0:03:00.9]} 4... Nf6 {[%clk 0:02:56]} 5. Nc3 {[%clk 0:03:01.3]}
5... a6 {[%clk 0:02:56.5]} 6. Be2 {[%clk 0:02:57.4]} 6... e6 {[%clk 0:02:56.1]}
7. O-O {[%clk 0:02:54.6]} 7... b5 {[%clk 0:02:52.4]} 8. Bf3 {[%clk 0:02:44.1]}
8... Ra7 {[%clk 0:02:46.7]} 9. a4 {[%clk 0:02:40.5]} 9... b4 {[%clk 0:02:42.8]}
10. Na2 {[%clk 0:02:40.4]} 10... Bb7 {[%clk 0:02:32.9]} 11. Be3 {[%clk
0:02:37.8]} 11... Ra8 {[%clk 0:02:03.6]} 12. e5 {[%clk 0:02:36.2]} 12... Bxf3
{[%clk 0:01:27.6]} 13. Qxf3 {[%clk 0:02:35.6]} 13... Nd5 {[%clk 0:01:26.3]} 14.
exd6 {[%clk 0:02:18.3]} 14... Bxd6 {[%clk 0:01:21.9]} 15. c4 {[%clk 0:02:07.8]}
15... Nxe3 {[%clk 0:00:50.5]} 16. fxe3 {[%clk 0:02:02.9]} 16... Ra7 {[%clk
0:00:50.9]} 17. Rad1 {[%clk 0:01:37.4]} 17... Qc7 {[%clk 0:00:26]} 18. Qg4
{[%clk 0:01:15.8]} 18... O-O {[%clk 0:00:15.1]} 19. Nxe6 {[%clk 0:01:00.6]}
19... fxe6 {[%clk 0:00:04.5]} 20. Qxe6+ {[%clk 0:00:59.9]} 20... Kh8 {[%clk
0:00:04.8]} 21. Rxd6 {[%clk 0:00:42.7]} 21... Nd7 {[%clk 0:00:03.5]} 22. Nxb4
{[%clk 0:00:24.2]} 22... Nf6 {[%clk 0:00:03.4]} 23. Nd5 {[%clk 0:00:20.1]} 23...
Qxc4 {[%clk 0:00:01.2]} 24. Nxf6 {[%clk 0:00:19.1]} 24... Qxe6 {[%clk
0:00:01.1]} 25. Rxe6 {[%clk 0:00:19.4]} 25... gxf6 {[%clk 0:00:01.2]} 26. Rexf6
{[%clk 0:00:16.2]} 26... Rb8 {[%clk 0:00:01.3]} 27. Rf8+ {[%clk 0:00:16]} 27...
Rxf8 {[%clk 0:00:01.3]} 28. Rxf8+ {[%clk 0:00:16.9]} 28... Kg7 {[%clk
0:00:02.2]} 29. Rb8 {[%clk 0:00:16.8]} 29... a5 {[%clk 0:00:01.8]} 30. Kf2
{[%clk 0:00:16.8]} 30... Rf7+ {[%clk 0:00:01.9]} 31. Ke2 {[%clk 0:00:17.4]}
31... Rc7 {[%clk 0:00:01.9]} 32. Kd3 {[%clk 0:00:16.9]} 32... Rd7+ {[%clk
0:00:02]} 33. Ke2 {[%clk 0:00:17.1]} 33... Rc7 {[%clk 0:00:02.2]} 34. Rb5 {[%clk
0:00:17.5]} 34... Rc2+ {[%clk 0:00:02.2]} 35. Kf3 {[%clk 0:00:17.9]} 35... Rxg2
{[%clk 0:00:02.7]} 36. Kxg2 {[%clk 0:00:17.7]} 1-0